[Event "Tata Steel-A 80th"]
[Site "Wijk aan Zee"]
[Date "2018.01.14"]
[Round "2"]
[White "Wei, Yi"]
[Black "Svidler, Peter"]
[Result "1/2-1/2"]
[ECO "D91"]
[WhiteElo "2743"]
[BlackElo "2768"]
[Annotator "Fernandez,D"]
[PlyCount "247"]
[EventDate "2018.01.13"]
[EventType "tourn"]
[EventRounds "13"]
[EventCountry "NED"]
[EventCategory "20"]
[SourceTitle "CBM 183"]
[Source "ChessBase"]
[SourceDate "2018.03.14"]
[SourceVersion "1"]
[SourceVersionDate "2018.03.14"]
[SourceQuality "1"]
[TimeControl "40/6000+30:20/3000+30:900+30"]

1. d4 {[%emt 0:00:00]} Nf6 {[%emt 0:00:10]} 2. c4 {[%emt 0:00:00]} g6 {[%emt 0:
00:03]} 3. Nc3 {[%emt 0:00:00]} d5 {[%emt 0:00:05]} 4. Bg5 {[%emt 0:00:09]} Ne4
{[%emt 0:01:53]} (4... Bg7 {is the other move, and would be my choice in a
game. Following} 5. Bxf6 Bxf6 6. cxd5 c6 $1 {Black obtains good compensation.})
5. Bh4 {[%emt 0:00:16]} Nxc3 {[%emt 0:00:06]} (5... c5 $5 {is a suitably
mental-looking move which however quietens down reasonably soon. It equalises,
and is suitable for quick research at home.}) 6. bxc3 {[%emt 0:00:06]} dxc4 {
[%emt 0:00:07]} 7. e3 {[%emt 0:00:30]} Be6 {[%emt 0:00:27]} 8. Nf3 {[%emt 0:00:
16]} Bg7 {[%emt 0:01:44]} 9. Qb1 {[%emt 0:00:44] One of those positions where
Black should be equal, but finding clear ways to do so is a little challenging.
} Qd5 {[%emt 0:10:52]} (9... b6 10. Ng5 (10. Be2 O-O 11. O-O {and now
following the inaccurate} c5 $6 {White obtained a much easier position in a
recent practical test, and the game will for obvious reasons have influenced
the present one. A logical improvement is ...Nc6, and that seems to obtain
equal chances, but Svidler might have been scared of White's analysis of his
own previous game.} 12. Rd1 Qc7 13. Qb2 (13. d5 $5 $14) 13... Re8 14. Ng5 Bd5
15. e4 Bb7 16. Bg3 $14 {Tran,T-Wei,Y Chengdu 2017}) 10... Bd5 11. e4 h6 12.
exd5 hxg5 13. Qb5+ Qd7 14. Qxd7+ Nxd7 15. Bxg5 b5 16. a4 b4 17. Rc1 bxc3 18.
Rxc3 Rb8 19. Rxc4 Nb6 20. Rxc7 Nxd5 21. Rc5 e6 22. Bb5+ Kf8 23. O-O Bxd4 24.
Rc4 e5 25. Rfc1 Kg7 26. g3 Rb6 27. Kg2 a6 28. Bc6 Nf6 29. h3 Rb2 30. R1c2 Rhb8
{1/2-1/2 (30) Radjabov,T (2722)-Van Wely,L (2674) Monzon 2016}) 10. Be2 {
[%emt 0:01:45]} Bf5 {[%emt 0:08:00]} 11. Qb4 {[%emt 0:00:26]} c5 {[%emt 0:02:
37]} 12. Qb5+ {[%emt 0:00:14] Maybe just trying to stop the ...Nd7 development
plan before inevitably capturing on c4.} Bd7 {[%emt 0:03:05]} 13. Qxc4 {
[%emt 0:00:19]} Bc6 $146 {[%emt 0:08:14]} (13... Qxc4 14. Bxc4 Nc6 15. Rb1 cxd4
16. cxd4 Rc8 17. Be2 Na5 18. Kd2 e6 19. Rhc1 O-O 20. Be7 Rxc1 21. Rxc1 Rc8 22.
Rxc8+ {1/2-1/2 (20) Mitkov,M (2401)-Bogdanovski,V (2421) Skopje 2011}) 14. Qb3
{[%emt 0:15:01]} e6 {[%emt 0:17:46]} 15. c4 {[%emt 0:13:30] This might throw
away White's opening edge.} (15. O-O {is more conservative, since Black feels
awkward with his queen in the middle anyway. There are some obvious quick
lines:} Qxb3 (15... O-O 16. Be7 Rc8 17. Bxc5 $14) (15... Nd7 16. c4 Qf5 17.
Rad1 $14) 16. axb3 Nd7 17. b4 $14) 15... Qd7 {[%emt 0:02:16]} 16. Ne5 {[%emt 0:
18:36]} Qc7 {[%emt 0:00:34]} 17. O-O $5 {[%emt 0:00:35] Maximalism. White
makes Black run the gauntlet for his equality.} (17. Nxc6 Nxc6 18. Rb1 cxd4 19.
Qxb7 Qxb7 20. Rxb7 O-O $11 {is an optical edge only for White}) 17... O-O {
[%emt 0:10:09]} (17... cxd4 18. exd4 Bxe5 19. dxe5 Qxe5 {is the acid test, and
the computer obviously thinks this is fine for Black, but I'd prefer White
after} 20. Qb4 $44) 18. Bg3 $1 $14 {[%emt 0:04:00] Back on track. Black will
be suffering a bit now.} Qb6 {[%emt 0:00:42]} 19. Rfd1 {[%emt 0:28:14]} Qa6 {
[%emt 0:06:49]} 20. a4 {[%emt 0:03:42]} Nd7 {[%emt 0:01:08]} 21. Nxc6 {[%emt 0:
08:36]} bxc6 {[%emt 0:00:09]} 22. Rab1 {[%emt 0:00:09]} cxd4 {[%emt 0:07:54]}
23. exd4 {[%emt 0:00:06]} Nb6 {[%emt 0:00:13]} 24. Ra1 {[%emt 0:07:41]} (24. a5
$5 Qxa5 25. Ra1 Qg5 26. h4 Qe7 27. Ra6 $14 {deserved consideration too - the
a7-pawn and c6-pawn are both weak.}) 24... Rfd8 {[%emt 0:09:41]} 25. a5 {
[%emt 0:00:53]} Nc8 {[%emt 0:01:50]} 26. Ra2 {[%emt 0:02:35] A tricky move
that was probably seen a while in advance. White's threat is c5, trapping the
queen, and this serves as a tactical defence of d4 too.} Ne7 {[%emt 0:00:49]
Else d5 comes with even more power.} 27. d5 {[%emt 0:00:16]} exd5 {[%emt 0:06:
12]} 28. cxd5 {[%emt 0:00:02]} Qc8 {[%emt 0:00:06]} 29. Bh4 {[%emt 0:00:54]}
Qc7 {[%emt 0:03:44]} 30. Bxe7 {[%emt 0:01:23]} (30. Qa3 $5 c5 31. Bc4 $16 {
kept the same size of advantage but with material level.}) 30... Qxe7 {[%emt 0:
00:01]} 31. dxc6 {[%emt 0:00:07]} Rxd1+ {[%emt 0:03:24]} 32. Qxd1 {[%emt 0:00:
03]} Rd8 {[%emt 0:00:05]} 33. Qc2 {[%emt 0:03:03]} Be5 {[%emt 0:02:07]} 34. g3
{[%emt 0:00:17]} Rb8 {[%emt 0:00:16]} 35. Kg2 {[%emt 0:00:41] As with
Anand-Matlakov, this is a thankless defence even if possible in theory - but
the difference is Svidler manages it! Although he is lost at various points.}
Kg7 {[%emt 0:00:18]} 36. Qc1 {[%emt 0:01:52]} Rb3 {[%emt 0:00:38]} 37. Bf3 {
[%emt 0:00:50]} Bc7 {[%emt 0:02:20]} 38. Qc4 {[%emt 0:00:28]} Ra3 {[%emt 0:01:
25]} 39. Qd4+ {[%emt 0:00:36]} Be5 {[%emt 0:00:38]} 40. Re2 {[%emt 0:00:00]} (
40. Qxe5+ $5 {is worth a glance or two, but not more:} Qxe5 41. Rxa3 g5 $1 {
This is the only move. Black needs to force g4 and exchange a pair of pawns,
so that down the road Bb7 can be stopped on pain of perpetual by Bb7. For
instance:} 42. g4 h5 43. h3 hxg4 44. hxg4 Qc5 45. Rd3 Qxa5 46. Rd7 Qc5 47. c7
Qc4 $1 $11) 40... Rxa5 {[%emt 0:00:31]} 41. Qd7 {[%emt 0:06:41]} Kf8 {[%emt 0:
08:42]} 42. Qc8+ {[%emt 0:03:44]} Qe8 {[%emt 0:13:09]} 43. Qb7 {[%emt 0:27:03]}
Rc5 {[%emt 0:00:52]} 44. Qxa7 {[%emt 0:00:20]} (44. Rd2 $1 {was winning on the
spot- there was nothing to be done about Rd7 and Bd5.}) 44... Qe7 {[%emt 0:00:
35]} 45. Qa3 {[%emt 0:00:18]} h5 {[%emt 0:07:47]} 46. Rd2 {[%emt 0:04:28]} Bd6
{[%emt 0:00:29]} 47. Qd3 {[%emt 0:00:08]} Be5 {[%emt 0:01:55]} 48. Qa3 {
[%emt 0:00:49]} Bd6 {[%emt 0:00:06]} 49. Qd3 {[%emt 0:00:05]} Be5 {[%emt 0:00:
09]} 50. Qb3 {[%emt 0:03:12]} Rc3 {[%emt 0:04:19]} 51. Qd1 {[%emt 0:01:32]} h4
{[%emt 0:01:48]} 52. Rd7 {[%emt 0:05:13]} Qg5 {[%emt 0:00:11]} 53. Qd5 {
[%emt 0:03:11]} Qf5 {[%emt 0:01:10]} 54. Bg4 $6 {[%emt 0:00:23] Committing to
the next move as otherwise c6 is lost.} Qf6 {[%emt 0:00:44]} 55. f4 {[%emt 0:
00:52] Not a fantastic call to have to make. Now White has few pawns and the
one he might eventually have to win with queens on a square of the wrong
colour.} (55. Be2 Rxc6 56. Rxf7+ Qxf7 57. Qxc6 hxg3 58. hxg3 $11) 55... Bxf4 {
[%emt 0:03:28]} 56. gxf4 {[%emt 0:00:27]} Rc2+ {[%emt 0:00:10]} 57. Kh3 {
[%emt 0:00:30]} Rc3+ {[%emt 0:00:05]} 58. Kg2 {[%emt 0:00:03]} Rc2+ {[%emt 0:
00:04]} 59. Kg1 {[%emt 0:00:49]} Rc1+ {[%emt 0:00:13]} 60. Bd1 {[%emt 0:00:00]}
Qxf4 {[%emt 0:00:15]} 61. Qd4 {[%emt 0:15:01] Going into a drawn ending.} Qxd4+
{[%emt 0:04:33]} 62. Rxd4 {[%emt 0:00:03]} Rxc6 {[%emt 0:04:48]} 63. Rxh4 {
[%emt 0:00:06]} Kg7 {[%emt 0:00:03]} 64. Rd4 {[%emt 0:00:07]} Rf6 {[%emt 0:01:
23] Black has now reached complete safety, though White made him go the
distance.} 65. Kg2 {[%emt 0:00:03]} Kh6 {[%emt 0:00:27]} 66. Bf3 {[%emt 0:00:
06]} Kg7 {[%emt 0:00:02]} 67. Kg3 {[%emt 0:00:03]} Kh6 {[%emt 0:00:06]} 68. Kf2
{[%emt 0:01:05]} Kg7 {[%emt 0:00:17]} 69. Rd7 {[%emt 0:00:07]} Kg8 {[%emt 0:00:
25]} 70. Ke3 {[%emt 0:00:04]} Kg7 {[%emt 0:00:03]} 71. Bd5 {[%emt 0:00:22]} Kg8
{[%emt 0:00:21]} 72. Bc4 {[%emt 0:01:25]} Kg7 {[%emt 0:00:13]} 73. Rc7 {
[%emt 0:00:04]} Rf5 {[%emt 0:00:41]} 74. Ra7 {[%emt 0:01:04]} Rf6 {[%emt 0:00:
27]} 75. Rb7 {[%emt 0:00:04]} Rf5 {[%emt 0:00:04]} 76. Ba2 {[%emt 0:00:04]} Rf6
{[%emt 0:00:06]} 77. Bb3 {[%emt 0:00:05]} Rf5 {[%emt 0:00:04]} 78. Rd7 {
[%emt 0:00:15]} Rf6 {[%emt 0:00:27]} 79. Bc4 {[%emt 0:00:04]} Rf5 {[%emt 0:00:
04]} 80. Bd5 {[%emt 0:00:03]} Rf6 {[%emt 0:00:07]} 81. Rb7 {[%emt 0:00:23]} Rf5
{[%emt 0:00:13]} 82. Ke4 {[%emt 0:00:21]} Kg8 {[%emt 0:00:48]} 83. Ra7 {
[%emt 0:01:06]} Kg7 {[%emt 0:00:21]} 84. Kd4 {[%emt 0:00:02]} Rf2 {[%emt 0:02:
10]} 85. h3 {[%emt 0:00:07]} Rf1 {[%emt 0:00:28]} 86. Kc5 {[%emt 0:00:05]} Rf6
{[%emt 0:00:27]} 87. Rb7 {[%emt 0:00:39]} Kg8 {[%emt 0:00:26]} 88. Kd4 {
[%emt 0:00:06]} Rf5 {[%emt 0:00:24]} 89. Kc4 {[%emt 0:01:23]} Kg7 {[%emt 0:00:
15]} 90. Kc5 {[%emt 0:00:04]} Rf6 {[%emt 0:00:05]} 91. Rc7 {[%emt 0:00:41]} Kf8
{[%emt 0:01:01]} 92. Be4 {[%emt 0:00:07]} Kg7 {[%emt 0:00:07]} 93. Kd5 {
[%emt 0:00:06]} Re6 {[%emt 0:00:31]} 94. Kd4 {[%emt 0:00:18]} Rf6 {[%emt 0:00:
16]} 95. Ra7 {[%emt 0:00:12]} Kf8 {[%emt 0:00:17]} 96. Ra3 {[%emt 0:01:34]} Kg7
{[%emt 0:00:07]} 97. Kd5 {[%emt 0:00:12]} Re6 {[%emt 0:00:33]} 98. Rc3 {
[%emt 0:00:13]} Rf6 {[%emt 0:00:05]} 99. Bc2 {[%emt 0:00:03]} Kf8 {[%emt 0:02:
48]} 100. Bb3 {[%emt 0:00:05]} Kg7 {[%emt 0:00:49]} 101. Ke5 {[%emt 0:00:05]}
Rf5+ {[%emt 0:00:03]} 102. Kd6 {[%emt 0:00:03]} Rf4 {[%emt 0:00:27]} 103. Bd5 {
[%emt 0:00:09]} Rf5 {[%emt 0:00:07]} 104. Rc7 {[%emt 0:00:10]} Kf8 {[%emt 0:00:
16]} 105. Ra7 {[%emt 0:01:59]} Rf6+ {[%emt 0:01:36]} 106. Kd7 {[%emt 0:00:04]}
Rf5 {[%emt 0:00:04]} 107. Ra8+ {[%emt 0:01:23]} Kg7 {[%emt 0:00:05]} 108. Kd6 {
[%emt 0:00:02]} Rf6+ {[%emt 0:01:30]} 109. Ke7 {[%emt 0:00:09]} Rf5 {[%emt 0:
00:05]} 110. Rd8 {[%emt 0:00:18]} Re5+ {[%emt 0:00:12]} 111. Kd6 {[%emt 0:00:
04]} Rf5 {[%emt 0:00:07]} 112. Be4 {[%emt 0:01:46]} Rf6+ {[%emt 0:00:22]} 113.
Ke5 {[%emt 0:00:03]} Re6+ {[%emt 0:00:07]} 114. Kf4 {[%emt 0:00:02]} Rf6+ {
[%emt 0:00:10]} 115. Kg5 {[%emt 0:00:05]} Re6 {[%emt 0:01:07]} 116. Rd4 {
[%emt 0:00:05]} Rf6 {[%emt 0:00:24]} 117. h4 {[%emt 0:00:09]} Re6 {[%emt 0:00:
31]} 118. Bf3 {[%emt 0:00:04]} Rf6 {[%emt 0:00:27]} 119. Bg4 {[%emt 0:00:06]}
Rf1 {[%emt 0:01:09]} 120. Rd7 {[%emt 0:00:03]} Rf2 {[%emt 0:00:20]} 121. h5 $6
{[%emt 0:00:03]} gxh5 {[%emt 0:00:10]} 122. Bxh5 {[%emt 0:00:03]} Rf1 {[%emt 0:
00:44]} 123. Bxf7 {[%emt 0:00:03]} Rxf7 {[%emt 0:00:03]} 124. Rxf7+ 1/2-1/2

[Event "Tata Steel-A 80th"]
[Site "Wijk aan Zee"]
[Date "2018.01.15"]
[Round "3"]
[White "Carlsen, Magnus"]
[Black "Wei, Yi"]
[Result "1/2-1/2"]
[ECO "E06"]
[WhiteElo "2834"]
[BlackElo "2743"]
[PlyCount "92"]
[EventDate "2018.01.13"]
[EventType "tourn"]
[EventRounds "13"]
[EventCountry "NED"]
[EventCategory "20"]
[SourceTitle "CBM 183"]
[Source "ChessBase"]
[SourceDate "2018.03.14"]
[SourceVersion "1"]
[SourceVersionDate "2018.03.14"]
[SourceQuality "1"]
[TimeControl "40/6000+30:20/3000+30:900+30"]

1. d4 {[%emt 0:00:00]} Nf6 {[%emt 0:00:16]} 2. c4 {[%emt 0:00:50]} e6 {[%emt 0:
00:15]} 3. g3 {[%emt 0:00:48]} d5 {[%emt 0:00:25]} 4. Bg2 {[%emt 0:00:07]} Be7
{[%emt 0:00:33]} 5. Nf3 {[%emt 0:00:11]} O-O {[%emt 0:00:18]} 6. Qc2 {[%emt 0:
00:16]} c5 {[%emt 0:01:18]} 7. O-O {[%emt 0:00:27]} cxd4 {[%emt 0:09:56]} 8.
Nxd4 {[%emt 0:00:27]} Na6 {[%emt 0:00:12]} 9. cxd5 {[%emt 0:08:56]} Nb4 {
[%emt 0:00:19]} 10. Qb3 {[%emt 0:02:10]} e5 {[%emt 0:00:58]} 11. Nb5 {[%emt 0:
06:17]} Nbxd5 {[%emt 0:00:27]} 12. N1c3 {[%emt 0:02:42]} Be6 {[%emt 0:02:21]}
13. Nxd5 {[%emt 0:00:20]} Bxd5 {[%emt 0:00:33]} 14. Bxd5 {[%emt 0:00:12]} Qxd5
{[%emt 0:00:06]} 15. Bg5 {[%emt 0:00:21]} Qxb3 {[%emt 0:15:51]} 16. axb3 {
[%emt 0:00:02]} a6 {[%emt 0:00:22]} 17. Nc3 {[%emt 0:00:38]} h6 {[%emt 0:02:44]
} 18. Bxf6 {[%emt 0:00:16]} Bxf6 {[%emt 0:00:08]} 19. Nd5 {[%emt 0:01:24]} Rac8
{[%emt 0:01:28]} 20. Rac1 {[%emt 0:02:14]} e4 {[%emt 0:08:15]} 21. Rc4 {
[%emt 0:00:59]} Rxc4 {[%emt 0:03:47]} 22. bxc4 {[%emt 0:00:01]} Bxb2 {[%emt 0:
08:30]} 23. Rb1 {[%emt 0:00:10]} Ba3 {[%emt 0:00:04]} 24. Rxb7 {[%emt 0:00:14]}
Rc8 {[%emt 0:00:12]} 25. Ra7 {[%emt 0:02:45]} Rxc4 {[%emt 0:04:35]} 26. Rxa6 {
[%emt 0:00:08]} Bf8 {[%emt 0:05:13]} 27. Ra8 {[%emt 0:05:36]} g6 {[%emt 0:00:
05]} 28. e3 {[%emt 0:00:44]} Kg7 {[%emt 0:00:39]} 29. Kg2 {[%emt 0:01:00]} h5 {
[%emt 0:00:46]} 30. h3 {[%emt 0:00:36]} Bd6 {[%emt 0:03:06]} 31. Rd8 {[%emt 0:
03:26]} Be5 {[%emt 0:00:25]} 32. Re8 {[%emt 0:01:12]} Bd6 {[%emt 0:00:06]} 33.
Rd8 {[%emt 0:00:40]} Be5 {[%emt 0:00:06]} 34. g4 {[%emt 0:00:57]} hxg4 {
[%emt 0:00:14]} 35. hxg4 {[%emt 0:00:03]} Rc5 {[%emt 0:07:13]} 36. g5 {[%emt 0:
00:48]} Rb5 {[%emt 0:01:08]} 37. Kh3 {[%emt 0:00:29]} Rc5 {[%emt 0:00:45]} 38.
Ne7 {[%emt 0:01:02]} Rc2 {[%emt 0:06:06]} 39. Kg2 {[%emt 0:00:32]} Rc7 {
[%emt 0:00:10]} 40. Rg8+ {[%emt 0:00:00]} Kh7 {[%emt 0:00:04]} 41. Re8 {
[%emt 0:00:47]} Rc5 {[%emt 0:00:07]} 42. Rc8 {[%emt 0:01:17]} Rb5 {[%emt 0:02:
27]} 43. Rf8 {[%emt 0:01:06]} Kg7 {[%emt 0:00:11]} 44. Rg8+ {[%emt 0:00:08]}
Kh7 {[%emt 0:00:04]} 45. Rf8 {[%emt 0:00:12]} Kg7 {[%emt 0:00:06]} 46. Rg8+ {
[%emt 0:00:13]} Kh7 {[%emt 0:00:05]} 1/2-1/2

[Event "Tata Steel-A 80th"]
[Site "Wijk aan Zee"]
[Date "2018.01.15"]
[Round "3"]
[White "Jones, Gawain C B"]
[Black "Adhiban, Baskaran"]
[Result "1-0"]
[ECO "C07"]
[WhiteElo "2640"]
[BlackElo "2655"]
[PlyCount "109"]
[EventDate "2018.01.13"]
[EventType "tourn"]
[EventRounds "13"]
[EventCountry "NED"]
[EventCategory "20"]
[SourceTitle "CBM 183"]
[Source "ChessBase"]
[SourceDate "2018.03.14"]
[SourceVersion "1"]
[SourceVersionDate "2018.03.14"]
[SourceQuality "1"]
[TimeControl "40/6000+30:20/3000+30:900+30"]

1. e4 {[%emt 0:00:00]} e6 {[%emt 0:00:39]} 2. d4 {[%emt 0:00:40]} d5 {[%emt 0:
00:10]} 3. Nd2 {[%emt 0:00:04]} c5 {[%emt 0:01:13]} 4. exd5 {[%emt 0:00:22]}
Qxd5 {[%emt 0:01:20]} 5. dxc5 {[%emt 0:00:17]} Qxc5 {[%emt 0:05:26]} 6. Ngf3 {
[%emt 0:00:23]} Nf6 {[%emt 0:00:09]} 7. Bd3 {[%emt 0:00:11]} Nbd7 {[%emt 0:00:
28]} 8. Qe2 {[%emt 0:01:12]} Qc7 {[%emt 0:03:42]} 9. c3 {[%emt 0:01:51]} Be7 {
[%emt 0:11:25]} 10. O-O {[%emt 0:01:49]} b6 {[%emt 0:07:27]} 11. Ne4 {[%emt 0:
01:42]} O-O {[%emt 0:09:49]} 12. Bg5 {[%emt 0:06:30]} Bb7 {[%emt 0:00:30]} 13.
Bh4 {[%emt 0:04:18]} Qf4 {[%emt 0:09:53]} 14. Bg5 {[%emt 0:05:12]} Qc7 {
[%emt 0:00:04]} 15. Rad1 {[%emt 0:06:59]} Rfd8 {[%emt 0:07:24]} 16. Rfe1 {
[%emt 0:06:04]} Rac8 {[%emt 0:04:06]} 17. Bh4 {[%emt 0:11:49]} Qf4 {[%emt 0:00:
37]} 18. Bg3 {[%emt 0:07:54]} Qg4 {[%emt 0:05:30]} 19. Nxf6+ {[%emt 0:05:28]}
Bxf6 {[%emt 0:02:18]} 20. Ba6 {[%emt 0:04:02]} Bxa6 {[%emt 0:00:10]} 21. Qxa6 {
[%emt 0:00:07]} Nc5 {[%emt 0:00:08]} 22. Rxd8+ {[%emt 0:02:53]} Rxd8 {[%emt 0:
00:04]} 23. Qxa7 {[%emt 0:00:08]} Nd3 {[%emt 0:06:14]} 24. h3 {[%emt 0:06:51]}
Qc4 {[%emt 0:04:40]} 25. Rd1 {[%emt 0:01:18]} h5 {[%emt 0:00:17]} 26. Qxb6 {
[%emt 0:08:38]} Qxa2 {[%emt 0:02:13]} 27. Ne5 {[%emt 0:18:50]} Qxb2 {[%emt 0:
12:27]} 28. Qc7 {[%emt 0:00:35]} Rf8 {[%emt 0:00:17]} 29. Nd7 {[%emt 0:00:51]}
Qe2 {[%emt 0:08:01]} 30. Ra1 {[%emt 0:01:19]} Qb2 {[%emt 0:00:44]} 31. Ra7 {
[%emt 0:02:28]} Bd8 {[%emt 0:01:42]} 32. Qd6 {[%emt 0:01:03]} Qb1+ {[%emt 0:00:
06]} 33. Kh2 {[%emt 0:00:02]} Re8 {[%emt 0:00:05]} 34. Qc6 {[%emt 0:03:28]} h4
{[%emt 0:03:38]} 35. Nf6+ {[%emt 0:00:15]} Bxf6 {[%emt 0:00:04]} 36. Qxe8+ {
[%emt 0:00:06]} Kh7 {[%emt 0:00:01]} 37. Qxf7 {[%emt 0:00:24]} hxg3+ {[%emt 0:
00:14]} 38. fxg3 {[%emt 0:00:05]} Qb8 {[%emt 0:00:32] Here Adhiban
unfortunately had no time to go for mate with 38...Nf2, as 39.Qh5+ Kg8 40.Ra8+
and White mates first!} (38... Nf2 39. Qh5+ Kg8 40. Ra8+) 39. Qxf6 {[%emt 0:02:
00]} Qxa7 {[%emt 0:00:28]} 40. Qh4+ {[%emt 0:00:00]} Kg8 {[%emt 0:02:08]} 41.
Qd8+ {[%emt 0:00:34]} Kf7 {[%emt 0:00:01]} 42. Qxd3 {[%emt 0:00:08]} Qc5 {
[%emt 0:00:03]} 43. h4 {[%emt 0:04:32]} e5 {[%emt 0:02:17]} 44. g4 {[%emt 0:04:
53]} g6 {[%emt 0:00:33]} 45. Qf3+ {[%emt 0:03:02]} Kg7 {[%emt 0:02:02]} 46. g5
{[%emt 0:01:27]} Qc4 {[%emt 0:00:19]} 47. Qb7+ {[%emt 0:03:49]} Kg8 {[%emt 0:
00:11]} 48. Qb4 {[%emt 0:00:20]} Qd5 {[%emt 0:00:55]} 49. Qb8+ {[%emt 0:06:15]}
Kf7 {[%emt 0:01:14]} 50. Qa7+ {[%emt 0:01:38]} Ke6 {[%emt 0:01:14]} 51. Qa6+ {
[%emt 0:03:12]} Kf5 {[%emt 0:00:36]} 52. Kg3 {[%emt 0:01:15]} Qd1 {[%emt 0:02:
44]} 53. Qf6+ {[%emt 0:01:53]} Ke4 {[%emt 0:00:02]} 54. Qf3+ {[%emt 0:00:20]}
Qxf3+ {[%emt 0:00:03]} 55. gxf3+ {[%emt 0:00:06]} 1-0

[Event "Tata Steel-A 80th"]
[Site "Wijk aan Zee"]
[Date "2018.01.15"]
[Round "3"]
[White "Kramnik, Vladimir"]
[Black "Hou, Yifan"]
[Result "1/2-1/2"]
[ECO "A18"]
[WhiteElo "2787"]
[BlackElo "2680"]
[PlyCount "64"]
[EventDate "2018.01.13"]
[EventType "tourn"]
[EventRounds "13"]
[EventCountry "NED"]
[EventCategory "20"]
[SourceTitle "CBM 183"]
[Source "ChessBase"]
[SourceDate "2018.03.14"]
[SourceVersion "1"]
[SourceVersionDate "2018.03.14"]
[SourceQuality "1"]
[TimeControl "40/6000+30:20/3000+30:900+30"]

1. c4 {[%emt 0:00:00]} e6 {[%emt 0:00:11]} 2. Nc3 {[%emt 0:00:00]} Nf6 {
[%emt 0:01:30]} 3. e4 {[%emt 0:00:02]} d5 {[%emt 0:00:03]} 4. cxd5 {[%emt 0:00:
04]} exd5 {[%emt 0:00:04]} 5. e5 {[%emt 0:00:05]} Ne4 {[%emt 0:00:12]} 6. Nf3 {
[%emt 0:00:07]} Bf5 {[%emt 0:01:58]} 7. d3 {[%emt 0:00:16]} Nxc3 {[%emt 0:03:
14]} 8. bxc3 {[%emt 0:00:02]} Be7 {[%emt 0:00:12]} 9. d4 {[%emt 0:01:10]} O-O {
[%emt 0:04:26]} 10. Bd3 {[%emt 0:00:23]} Qd7 {[%emt 0:02:31]} 11. O-O {[%emt 0:
01:20]} Nc6 {[%emt 0:05:06]} 12. Re1 {[%emt 0:07:54]} b6 {[%emt 0:06:51]} 13.
Bb5 {[%emt 0:05:23]} Qe6 {[%emt 0:04:19]} 14. Ng5 {[%emt 0:03:34]} Bxg5 {
[%emt 0:21:48]} 15. Bxg5 {[%emt 0:00:05]} Qg6 {[%emt 0:01:38]} 16. h4 {[%emt 0:
10:07]} a6 {[%emt 0:09:07]} 17. Be2 {[%emt 0:09:24]} h6 {[%emt 0:02:53]} 18.
Bf4 {[%emt 0:04:47]} Qe6 {[%emt 0:07:19]} 19. h5 {[%emt 0:07:57]} Be4 {[%emt 0:
03:08]} 20. Bg4 {[%emt 0:02:20]} Bf5 {[%emt 0:00:14]} 21. Bf3 Rad8 {[%emt 0:05:
54]} 22. Qe2 {[%emt 0:10:49]} Na5 {[%emt 0:05:39]} 23. g4 {[%emt 0:03:50]} Be4
{[%emt 0:02:48]} 24. Bxe4 {[%emt 0:00:17]} dxe4 {[%emt 0:00:02]} 25. Bg3 {
[%emt 0:01:55]} c5 {[%emt 0:03:33]} 26. dxc5 {[%emt 0:01:54]} Nc4 {[%emt 0:01:
32]} 27. Qxe4 {[%emt 0:17:39]} Nd2 {[%emt 0:00:09]} 28. Qf4 {[%emt 0:03:36]}
bxc5 {[%emt 0:07:48]} 29. Re3 {[%emt 0:03:06]} Nc4 {[%emt 0:00:51]} 30. Re4 {
[%emt 0:02:52]} Nd2 {[%emt 0:00:12]} 31. Re3 {[%emt 0:02:26]} Nc4 {[%emt 0:00:
25]} 32. Re4 {[%emt 0:01:17]} Nd2 {[%emt 0:00:07]} 1/2-1/2

[Event "Tata Steel-A 80th"]
[Site "Wijk aan Zee"]
[Date "2018.01.15"]
[Round "3"]
[White "Mamedyarov, Shakhriyar"]
[Black "Matlakov, Maxim"]
[Result "1/2-1/2"]
[ECO "D46"]
[WhiteElo "2804"]
[BlackElo "2718"]
[PlyCount "49"]
[EventDate "2018.01.13"]
[EventType "tourn"]
[EventRounds "13"]
[EventCountry "NED"]
[EventCategory "20"]
[SourceTitle "CBM 183"]
[Source "ChessBase"]
[SourceDate "2018.03.14"]
[SourceVersion "1"]
[SourceVersionDate "2018.03.14"]
[SourceQuality "1"]
[TimeControl "40/6000+30:20/3000+30:900+30"]

1. d4 {[%emt 0:00:00]} d5 {[%emt 0:00:12]} 2. c4 {[%emt 0:00:00]} c6 {[%emt 0:
00:06]} 3. Nf3 {[%emt 0:05:10]} Nf6 {[%emt 0:00:15]} 4. Nc3 {[%emt 0:00:58]} e6
{[%emt 0:00:27]} 5. e3 {[%emt 0:01:54]} Nbd7 {[%emt 0:00:17]} 6. Be2 {[%emt 0:
01:30]} Bd6 {[%emt 0:04:43]} 7. Qc2 {[%emt 0:03:30]} O-O {[%emt 0:02:05]} 8.
O-O {[%emt 0:01:12]} dxc4 {[%emt 0:04:33]} 9. a4 {[%emt 0:00:19]} e5 {[%emt 0:
00:30]} 10. Bxc4 {[%emt 0:00:26]} exd4 {[%emt 0:08:32]} 11. exd4 {[%emt 0:00:
35]} Nb6 {[%emt 0:00:05]} 12. Bb3 {[%emt 0:06:22]} Nbd5 {[%emt 0:01:21]} 13.
Bg5 {[%emt 0:01:03]} Be6 {[%emt 0:02:06]} 14. Nxd5 {[%emt 0:08:23]} cxd5 {
[%emt 0:02:28]} 15. Qd3 {[%emt 0:00:26]} Be7 {[%emt 0:22:15]} 16. Ne5 {[%emt 0:
06:27]} Ne4 {[%emt 0:02:08]} 17. Bxe7 {[%emt 0:01:00]} Qxe7 {[%emt 0:00:05]}
18. f3 {[%emt 0:00:23]} Nd6 {[%emt 0:04:40]} 19. Rfe1 {[%emt 0:05:03]} Rac8 {
[%emt 0:09:11]} 20. a5 {[%emt 0:03:45]} Qg5 {[%emt 0:03:36]} 21. Rad1 {[%emt 0:
10:04]} Rfd8 {[%emt 0:08:20]} 22. g3 {[%emt 0:10:42]} Nc4 {[%emt 0:12:43]} 23.
Bc2 {[%emt 0:10:58]} g6 {[%emt 0:00:20]} 24. Nxc4 {[%emt 0:00:30]} Rxc4 {
[%emt 0:00:37]} 25. Bb3 {[%emt 0:00:27]} 1/2-1/2